Cogmind - Beta 16 @@@ ROGUE MODE // 2025.12.14 @ 19:58:22 Player: Cracklepappy Result: Destroyed by D-53 Grenadier with Mini Grenade Launcher Performance ------------- Evolutions (0) 0 Regions Visited (2) 400 Robots Destroyed (42) 210 Value Destroyed (746) 746 Prototype IDs (3) 60 Alien Tech Used (0) 0 Bonus (0) 0 TOTAL SCORE: 1416 Bonus ------- None Cogmind --------- Core Integrity 0/250 Matter 268/300 Energy 100/100 System Corruption 3% Temperature Cool (0) Movement Core (350) Ox6 Location -10/Mines Parts ------- > --- POWER (1) -------- (None) > --- PROPULSION (2) --- (None) > --- UTILITY (2) ------ Large Storage Unit Improved Targeting Computer > --- WEAPON (2) ------- (None) > --- INVENTORY (15) --- Flight Unit Flight Unit Flight Unit Flight Unit Medium Matter Pod (100) Large Matter Pod (150) Weight Redist. System Seismic Detector Improved Targeting Computer Tractor Beam Mining Laser Peak State ------------ > --- POWER ------------ Light Nuclear Core > --- PROPULSION ------- Light Treads Light Treads > --- UTILITY ---------- Large Storage Unit Improved Targeting Computer > --- WEAPON ----------- Light Assault Rifle Light Assault Rifle > --- INVENTORY -------- Flight Unit Flight Unit Flight Unit Flight Unit Medium Matter Pod Large Matter Pod Weight Redist. System Seismic Detector Improved Targeting Computer Tractor Beam Light Assault Rifle Light Cannon Grenade Launcher Mining Laser [Rating: 11] Favorites ----------- Power Light Ion Engine Engine Light Ion Engine Power Core Light Nuclear Core Propulsion Light Treads Treads Light Treads Flight Unit Flight Unit Utility Improved Targeting Computer Device Seismic Detector Storage Large Storage Unit Processor Improved Targeting Computer Weapon Assault Rifle Energy Gun Small Laser Ballistic Gun Assault Rifle Ballistic Cannon Light Cannon Launcher Grenade Launcher Build | -11 -10 -10 ------- Run | Yrd Mat Min Slots Evolved . | . . . Power . | . . . Propulsion . | . . . Utility . | . . . Weapon . | . . . Parts Attached 24 | 7 13 4 Power 5 | . 4 1 Engine 4 | . 4 . Core 1 | . . 1 Reactor . | . . . Propulsion 6 | 2 4 . Treads 3 | 2 1 . Leg . | . . . Wheel . | . . . Hover . | . . . Flight 3 | . 3 . Utility 5 | 3 2 . Device 3 | 3 . . Storage 1 | . 1 . Processor 1 | . 1 . Hackware . | . . . Protection . | . . . Artifact . | . . . Weapon 8 | 2 3 3 Energy Gun 1 | 1 . . Energy Cannon . | . . . Ballistic Gun 5 | 1 2 2 Ballistic Cannon 1 | . . 1 Launcher 1 | . 1 . Special Weapon . | . . . Impact Weapon . | . . . Slashing Weapon . | . . . Piercing Weapon . | . . . Special Melee Weapon . | . . . Unidentified Prototypes 1 | . 1 . Parts Lost 12 | . 2 10 Power 3 | . 1 2 Propulsion 3 | . 1 2 Utility . | . . . Weapon 6 | . . 6 Highest Loss Streak 8 | . 1 8 To Critical Strikes . | . . . Average Backups 11 | 3 11 14 Power . | . . . Propulsion 3 | . 3 4 Utility 3 | . 3 6 Weapon 4 | 2 4 4 Tool/Special . | . . . Unused Backups 19 | 5 4 10 Power 1 | 1 . . Propulsion 6 | 1 1 4 Utility 7 | 1 1 5 Weapon 5 | 2 2 1 Tool/Special . | . . . Average Slot Usage (%) 97 | . 98 92 Engine 11 | . 13 2 Core 1 | . . 8 Treads 24 | . 24 24 Flight 3 | . 3 . Device 4 | . 5 . Storage 10 | . 10 14 Processor 12 | . 12 14 Energy Gun 7 | . 8 . Ballistic Gun 19 | . 18 26 Peak Build Rating 11 | 7 10 11 Average Rating 8 | 4 8 9 On Entrance 5 | . 7 9 Avg Prop Armor Cover (%) 29 | 30 28 . Naked Turns . | . . . Heaviest Build 27 | 4 26 27 Greatest Support 40 | 20 40 40 Greatest Overweight (x) 6 | 1 1 6 Average Overweight (x) . | . . . Largest Inventory Capacity 15 | 5 15 15 Average Capacity 12 | 5 12 15 Most Carried 15 | 5 15 15 Average Carried 11 | 3 11 14 Final Capacity 15 | 5 15 15 Final Carried 15 | 5 15 11 Class Distribution -------------------- 87% | Mutant 12% | Scavenger-Mutant Dominant Class ---------------- Mutant | -10/Materials Mutant | -10/Mines Resources | -11 -10 -10 ----------- Run | Yrd Mat Min Matter Collected 1492 | 394 1033 65 Remotely . | . . . Salvage Created 1258 | 208 933 117 Parts 88 | 25 58 5 Haulers Intercepted 2 | . 2 . Recyclers Shooed 2 | . 2 . Parts Field Recycled . | . . . Retrieved Matter . | . . . Parts Self-Destructed . | . . . Prevented . | . . . Parts Restored . | . . . Kills | -11 -10 -10 ------- Run | Yrd Mat Min Combat Hostiles Destroyed 24 | . 21 3 Guns 19 | . 17 2 Cannons 1 | . . 1 AOE 4 | . 4 . Classes Destroyed 9 | 3 5 1 Worker 5 | 2 2 1 Tunneler 6 | 5 1 . Hauler 2 | . 2 . Recycler 3 | 1 2 . Operator 1 | . 1 . Watcher 1 | . 1 . Swarmer 9 | . 9 . Grunt 14 | . 12 2 Demolisher 1 | . . 1 Best Kill Streak 5 | 5 4 1 Combat Bots Only 3 | . 3 1 Max Kills in Single Turn 2 | 1 2 1 Gunslinging . | . . . Exploded 2 | . 2 . Melee . | . . . Uniques/NPCs Destroyed . | . . . Combat | -11 -10 -10 -------- Run | Yrd Mat Min Hostile Shots Fired 110 | . 70 40 Missed 14 | . 11 3 Hits 96 | . 59 37 Melee 1 | . . 1 Projectile 95 | . 59 36 AOE 18 | . . 18 Part Disruptions 1 | . . 1 Damage Taken 1547 | . 599 948 Core 250 | . 105 145 Absorbed by Shields . | . . . Regen/Repaired (Parts) 29 | . 29 . Core Remaining (%) 100 | 100 . . Volleys Fired 155 | 28 105 22 Largest 2 | 1 2 2 Hottest 60 | 40 60 50 Shots Fired 261 | 28 193 40 Gun 255 | 28 190 37 Cannon 2 | . . 2 Launcher 4 | . 3 1 Special . | . . . Kinetic 192 | 24 129 39 Thermal 65 | 4 61 . Explosive 4 | . 3 1 Electromagnetic . | . . . Robot Hit Streak 12 | 7 11 12 Robot Miss Streak 4 | 2 4 3 Penetration Max . | . . . Secondary Targets 1 | . 1 . Max Gunslinging Chain 1 | . 1 . Shots Hit Robots 171 | 19 123 29 Core Hits 77 | 9 54 14 Critical Kills . | . . . Critical Parts Destroyed 1 | . . 1 Critical Strikes 1 | . . 1 Destroy 1 | . . 1 Melee Attacks . | . . . Impact . | . . . Slashing . | . . . Piercing . | . . . Sneak Attacks . | . . . Combat Hostiles . | . . . Follow-up Attacks . | . . . Damage Inflicted 2179 | 251 1621 307 Guns 1937 | 251 1443 243 Cannons 40 | . . 40 Explosions 186 | . 176 10 Melee . | . . . Ramming 16 | . 2 14 Kinetic 1530 | 240 1007 283 Thermal 447 | 11 436 . Explosive 186 | . 176 10 Electromagnetic . | . . . Impact . | . . . Slashing . | . . . Piercing . | . . . Highest Corruption 3 | . 3 3 Average Corruption 3 | . 3 3 Corruption Purged . | . . . Corruption Blocked . | . . . Effects 32 | . 28 4 Message Errors 7 | . 6 1 Matter Fused 8 | . 7 1 Heat Flow Errors 3 | . 3 . Energy Discharges 4 | . 4 . Data Loss (minor) 2 | . 2 . Data Loss (major) 2 | . 2 . Misfires 1 | . . 1 Alerts 2 | . 2 . Weapon Failures 3 | . 2 1 Overload Shots . | . . . Overflow Damage . | . . . Projectiles . | . . . Explosions . | . . . Melee . | . . . Knockbacks . | . . . Impact . | . . . Kinetic . | . . . Secondary . | . . . Self-Inflicted Damage 1 | . . 1 Shots . | . . . Rammed 5 | . 1 4 Targets Rammed 6 | . 1 5 Kicked . | . . . Crushed 1 | . . 1 Highest Temperature 260 | . 260 18 Average Temperature 45 | . 50 6 Received Heat Transfer 370 | . 219 151 Siege Activations . | . . . Martial Activations . | . . . Shielding Activations . | . . . Robots Disrupted . | . . . Combat Hostiles . | . . . Robots Corrupted . | . . . Combat Hostiles . | . . . Parts Fried . | . . . Impact Corruptions . | . . . Robots Melted . | . . . Combat Hostiles . | . . . Parts Melted . | . . . Heat Transferred 1025 | 25 1000 . Parts Sabotaged . | . . . Parts Stolen . | . . . Parts Stripped . | . . . Power Chain Reactions . | . . . Alert | -11 -10 -10 ------- Run | Yrd Mat Min Maximum Alert Level . | . . . Low Security (%) 100 | 100 100 100 Level 1 . | . . . Level 2 . | . . . Level 3 . | . . . Level 4 . | . . . Level 5 . | . . . High Security . | . . . Max Security . | . . . Peak Influence 171 | 15 171 77 Initial 62 | . . 62 Average 74 | 3 87 29 Influence Increases 872 | 40 740 92 Destroy 0b10 Robot/C 480 | . 420 60 Destroy 0b10 Robot/NC 90 | 40 45 5 Destroy Leader 96 | . 86 10 Successful Hack 50 | . 50 . Select Force Hacks 60 | . 60 . Destroy Structure 21 | . 19 2 Lose Combat Pursuer 75 | . 60 15 Influence Decreases 872 | 40 580 252 Entered New Map 98 | . . 98 Time Decay 697 | 40 560 97 Lost Part 77 | . 20 57 Squads Dispatched 6 | . 6 . Investigation 4 | . 4 . Extermination . | . . . Reinforcement 2 | . 2 . Assault . | . . . Garrison . | . . . Intercept . | . . . Searches Triggered . | . . . Construction Impeded . | . . . Haulers Reinforced . | . . . Active Scanning Responses . | . . . Cargo Convoy Interrupts . | . . . Stealth | -11 -10 -10 --------- Run | Yrd Mat Min Distress Signals . | . . . Communications Jammed . | . . . Distress Signals . | . . . Times Spotted 56 | . 33 23 Peak Tracking Total 13 | . 4 13 Tactical Retreats 4 | . 2 2 Traps | -11 -10 -10 ------- Run | Yrd Mat Min Traps Triggered 1 | . 1 . Indirectly . | . . . Trap Hack Attempts . | . . . Triggered . | . . . Disarmed . | . . . Reprogrammed . | . . . Reused . | . . . Traps Extracted . | . . . Installed . | . . . Triggered . | . . . Machines | -11 -10 -10 ---------- Run | Yrd Mat Min Machines Disabled . | . . . Max in Single Turn . | . . . Machines Repaired . | . . . Machines Dismantled . | . . . Machines Sabotaged . | . . . Overloaded Fab Kills . | . . . Hacking | -11 -10 -10 --------- Run | Yrd Mat Min Machines Accessed 9 | . 9 . Terminals 6 | . 6 . Fabricators . | . . . Repair Stations 1 | . 1 . Recycling Units 2 | . 2 . Scanalyzers . | . . . Garrison Access . | . . . Total Hacks 38 | . 38 . Successful 18 | . 18 . Failed 20 | . 20 . Catastrophic 2 | . 2 . Database Lockouts . | . . . Manual 26 | . 26 . Terminals 26 | . 26 . Fabricators . | . . . Repair Stations 6 | . 6 . Recycling Units 6 | . 6 . Scanalyzers . | . . . Garrison Access . | . . . Terminal Hacks 4 | . 4 . Robot Schematic 1 | . 1 . Robot Analysis 1 | . 1 . Prototype ID Bank 1 | . 1 . Zone Layout 1 | . 1 . Fabricator Hacks . | . . . Repair Station Hacks 1 | . 1 . Scan Component 1 | . 1 . Recycling Unit Hacks 2 | . 2 . Retrieve Components 2 | . 2 . Scanalyzer . | . . . Garrison Access Hacks . | . . . Unauthorized Hacks 11 | . 11 . Terminals 7 | . 7 . Track 1 | . 1 . Operators 1 | . 1 . Skim 5 | . 5 . Fabricators . | . . . Repair Stations 1 | . 1 . Patch 1 | . 1 . Recycling Units 3 | . 3 . Reject 1 | . 1 . Tunnel 2 | . 2 . Scanalyzers . | . . . Garrison Access . | . . . Data Cores Recovered . | . . . Used . | . . . Hacking Detections 8 | . 8 . Full Trace Events . | . . . Feedback Events . | . . . Feedback Blocked . | . . . Robot Schematics Acquired 1 | . 1 . Robots Built . | . . . Authchips . | . . . Time . | . . . Total Robot Build Rating . | . . . Part Schematics Acquired . | . . . Parts Built . | . . . Authchips . | . . . Time . | . . . Total Part Build Rating . | . . . Part Studies Acquired . | . . . Parts Repaired . | . . . Time . | . . . Parts Recycled . | . . . Recycled Matter . | . . . Retrieved Matter . | . . . Retrieved Components 9 | . 9 . Parts Scanalyzed . | . . . Part Schematics Acquired . | . . . Parts Damaged . | . . . Bothacking | -11 -10 -10 ------------ Run | Yrd Mat Min Used RIF Installer . | . . . Robots Hacked . | . . . Non-combat . | . . . Combat . | . . . Robot Hacks Applied . | . . . Relay Couplers Released . | . . . Fabnet Peak Effective % . | . . . Robots Rewired . | . . . Allies Hacked . | . . . Hacks Repelled . | . . . Allies | -11 -10 -10 -------- Run | Yrd Mat Min Total Allies . | . . . Largest Group . | . . . Highest-Rated Group . | . . . Highest-Rated Ally . | . . . Total Orders . | . . . Ally Attacks . | . . . Total Damage . | . . . Kills . | . . . Allies Corrupted . | . . . Allies Melted . | . . . Intel | -11 -10 -10 ------- Run | Yrd Mat Min Active Infowar (turns) 615 | 102 513 . Terrain 279 | 76 203 . Seismic 615 | 102 513 . Robot Analysis Total 1 | . 1 . Derelict Logs Recovered 1 | . . 1 Drone Launches . | . . . Drone Recoveries . | . . . Exploration | -11 -10 -10 ------------- Run | Yrd Mat Min Turns Passed 2443 | 180 1959 304 Spaces Moved 1485 | 129 1223 133 Core 211 | 126 83 2 Treads 888 | 3 754 131 Legs . | . . . Wheels . | . . . Hover . | . . . Flight 386 | . 386 . Fastest Speed 37 | 50 37 160 Average Speed 118 | 78 117 164 Slowest Speed 350 | 160 160 350 Overloaded Moves . | . . . Propulsion Burnouts . | . . . Robots Hopped 7 | . 7 . Potential Cave-ins . | . . . Cave-ins Triggered . | . . . Exploration Rate (%) 43 | 4 98 27 Regions Visited 2 Branch Regions 1 Pre-discovered Areas 4 | . 3 1 Known Exits Taken . | . . . Unknown Exits Taken 2 | 1 1 . Scrap Searched . | . . . Spaces Dug 13 | . 13 . Terrain Destroyed 19 | . 16 3 Melee . | . . . Projectile . | . . . AOE 19 | . 16 3 Terrain Rammed . | . . . Walls Destroyed . | . . . Machines Disabled . | . . . Actions | -11 -10 -10 --------- Run | Yrd Mat Min Total 1908 | 179 1550 179 Wait 175 | . 162 13 Move 1469 | 128 1208 133 Hop 7 | . 7 . Pick Up 33 | 10 23 . Fast Attach 7 | 5 1 1 Attach 9 | 1 4 4 Detach 1 | 1 . . Swap 26 | 1 24 1 Drop 20 | 5 15 . Fire 155 | 28 105 22 Melee . | . . . Ram 1 | . . 1 Kick . | . . . Crush 5 | . 1 4 Escape Stasis . | . . . Rewire . | . . . Trap . | . . . Miscellaneous . | . . . Route ------- -11/Scrapyard -10/Materials (discovered 5 exits: *Mat x3 / [*Min] / Sub) -10/Mines (discovered 2 exits: *Mat x2) History --------- Turn | Location | Event 6 | -11/Scrapyard | Discovered new exit (range 15) 181 | -11/Scrapyard | Entered Materials 324 | -10/Materials | Discovered new exit (range 12) 584 | -10/Materials | Discovered new exit (range 15) 640 | -10/Materials | Discovered new exit (range 16) 843 | -10/Materials | Discovered new exit (range 16) 859 | -10/Materials | Learned location of 1 exit from Recycling 907 | -10/Materials | Build established: Mutant 1026 | -10/Materials | Identified exit to Subcaves 1065 | -10/Materials | Learned 2 Storage zone layouts 1117 | -10/Materials | Learned 2 Mines zone layouts 1149 | -10/Materials | Learned Storage emergency access door positions 1189 | -10/Materials | Loaded intel: 16 trap records 1237 | -10/Materials | Learned location of 2 exits from Materials 2140 | -10/Materials | Entered Mines 2141 | -10/Mines | Identified exit to Materials 2203 | -10/Mines | Core integrity fell below 50% 2376 | -10/Mines | Assembled infested the area 2431 | -10/Mines | Core integrity fell below 20% 2444 | -10/Mines | Destroyed by D-53 Grenadier with Mini Grenade Launcher Last Messages --------------- 02418_ as-64001 destroyed. 02419_ The unstable cave ceiling collapses. 02420_ Lgt. Assault Rifle destroyed. 02421_ D-53 Grenadier destroyed. 02423_ U-05 Engineer destroyed. 02424_ The unstable cave ceiling collapses. 02424_ Lgt. Cannon destroyed. 02425_ The unstable cave ceiling collapses. 02425_ System corrupted: Lgt. Assault Rifle jammed. 02427_ The unstable cave ceiling collapses. 02428_ Grenade Launcher destroyed. 02429_ The unstable cave ceiling collapses. 02430_ Lgt. Assault Rifle destroyed. 02431_ The unstable cave ceiling collapses. 02435_ Lgt. Assault Rifle destroyed. 02436_ The unstable cave ceiling collapses. 02442_ Slammed into D-53 Grenadier. 02442_ Destabilizing: System interference. 02442_ Imp. Targeting Computer temporarily disabled. 02443_ The unstable cave ceiling collapses. Map ----- +----------------------------------------------------+ | ?????????????????????????????????????????????????? | | ?????????????????????????????????????????????????? | | ?????????????????????????????????????????????????? | | ?????????????????????????????????????????????????? | | ?????????????????????????????????????????????????? | | ?????????????????????????????????????????????????? | | ?????????????????????????????????????????????????? | | ?????????????????????????????????????????????????? | | ?????????????????????????????????????????????????? | | ?????????????????????????????????????????????????? | | ?????????????????????????????????????????????????? | | ????????????????????????????? ???????????????????? | | ????????????????????????????? ??????????????????? | | ??????????????????????????? ??????????????????? | | ????????????????????#####?? "??????????????????? | | ???????????????# ?## #? ""?????????????????? | | ??????????????## ## # "??????????????????? | | ?????????????? # ###????????????????? | | ??????????????? ! ?????????????????? | | ????????????????# !%| # $#??????????????????? | | ????????????????# ! #??????????????????? | | ?????????????????# # #??????????????????? | | ??????????????????# # # #???????????????????? | | ???????????????????# ##??????????????????? | | ???????????????????# % d # #??????????????????? | | ##???# ????# @ #??????????????????? | | ##????## ????# #??????????????????? | | #??????# ????# # ####???????????????? | | ##??????# ????# #???????????? | | ##??????# ??### # ### #???????????? | | ####??## ??# #????? #??????????? | | #### ??# ### ##??????????????????? | | ## ??# #?## ##???????????????????? | | ##??# #??# t###????????????????????? | | ##???# #??# #??????????????????????? | | #????# #??# #??????????????????????? | | ##???# #??# ??????????????????????? | | ##??# #??# ??????????????????????? | | ## #??# #??# ??????????????????????? | | ###### #??# #??# ??????????????????????? | | #????## ###??# #??# ??????????????????????? | | ??????#######????# #??# ??????????????????????? | | ????????????###### #??## ??????????????????????? | | ???????????## ## #????## ??????????????????????? | | ?????????### #?????????????????????????????? | | ????????## ####?????????????????????????????? | | ######### ##????????????????????????????????? | | ##?????????????????????????????????? | | ########## ##??????????????????????????????????? | | ?????????### #???????????????????????????????????? | +----------------------------------------------------+ Best States ------------- Heat Dissipation 25 Energy Generation 14 Energy Capacity 250 Matter Stores 300 Matter Capacity 300 Sight Range 16 Terrain Scan Range 16 Terrain Scan Density 10 Evasion (%) 62 Targeting Accuracy 6 Recoil Reduction 2 Item Schematics ----------------- None Robot Schematics ------------------ M-13 Machinist | -10/Materials | Hacked Fabricated ------------ Nothing Repaired ---------- Nothing Studied --------- None Alien Tech Used ----------------- None Achievements -------------- None Challenges ------------ None Game ------ Seed NavigationSubatomicModule Manual? 0 Play Time 00:19:40 Cumulative 1437.4 hours Start 2025.12.14 @ 19:40:54 End 2025.12.14 @ 19:58:22 Sessions 1 Manual Loads 0 Difficulty Rogue Special Mode None Game No. 653 Rogue 653 Adventurer 0 Explorer 0 Win Type - Total 28 Types 13/5/3/0/1/1/2/2/0/1 Lore% 93 Gallery% 90 Achievement% 70 Wizard Run 0 Options --------- Layout 0 ASCII 0 Keyboard 0 Movement Numpad Keybinds 0 Fullscreen 2 Font 24/Smallcaps Map View 76x50 Zoom Use 0% Tactical HUD 1 Map Filters NONE Filters SHIFT_HUE(315) Steam 1 RUN: a65dc668-ae5c-48ac-8f28-ac5dfa1c0b8b